bitfinex-derivatives/quotes_ETHF0:USTF0_20250224
["timestamp","ask_amount","ask_price","bid_price","bid_amount"]
[1740374977609,3.2078,2716.3,2716.2,0.54507038]
[1740374978408,4.3371,2716.6,2716.2,0.54507038]
[1740374978611,4.3371,2716.6,2716.3,0.54507038]
[1740374978805,4.3371,2716.6,2715.8,3.2078]
[1740374978806,4.3371,2716.6,2716.4,0.54507038]
[1740374979009,4.3371,2716.6,2716.5,1.28129038]
[1740374979810,0.5367,2716.7,2716.6,0.73619]
[1740374980009,0.00551542,2716.8,2716.7,0.73617]
[1740374980212,0.00551542,2716.8,2716.7,1.28120323]
[1740374980402,5.42e-06,2716.8,2716.7,6.55997]
[1740374980608,5.42e-06,2716.8,2716.7,7.10472597]
[1740374981410,5.42e-06,2716.8,2716.7,1.28092597]
[1740374981715,5.42e-06,2716.8,2716.7,0.54432719]
[1740374981905,5.42e-06,2716.8,2716.7,0.54438587]
[1740374984013,5.42e-06,2716.8,2716.7,0.53568989]
[1740374986016,5.42e-06,2716.8,2716.7,0.5359361]
[1740374989219,5.42e-06,2716.8,2716.7,0.53595133]
[1740374990314,5.42e-06,2716.8,2716.7,0.53597851]
[1740374992323,5.42e-06,2716.8,2716.2,1.29399]
[1740374992508,3.2078,2716.6,2716.3,0.53607432]
[1740374992823,3.2078,2716.6,2716.4,0.53607432]
[1740374993117,3.2078,2716.6,2716.5,0.53607432]
[1740374994416,3.2078,2716.6,2716.5,0.53610463]
[1740374994918,3.2078,2716.6,2716.5,0.53611674]
[1740374995117,3.2078,2716.6,2716.0,0.73635]
[1740374995413,0.72703194,2716.8,2716.0,0.73635]
[1740374995414,3.2078,2716.3,2716.0,0.73635]
[1740374995616,3.2078,2716.3,2715.8,0.5561]
[1740374996114,0.5752,2716.2,2715.8,0.5561]
[1740374997117,0.72702652,2716.3,2715.9,3.2078]
[1740374997312,0.72702652,2716.3,2716.2,0.7363]
[1740374997518,3.2078,2716.6,2716.2,0.7363]
[1740374997920,3.2078,2716.6,2716.1,0.73632]
[1740374998116,3.2078,2716.6,2715.8,0.5561]
[1740374998117,3.2078,2716.3,2715.8,0.5561]
[1740374998418,0.5832,2716.2,2715.8,0.5561]
[1740374998620,1.1434,2716.2,2715.8,0.5561]
[1740374998814,0.5357,2716.1,2715.8,0.5561]
[1740374999812,3.2078,2716.0,2715.8,0.5561]
[1740375000020,0.5357,2716.1,2715.9,0.73638]
[1740375000321,3.2078,2716.0,2715.9,0.73638]
[1740375000522,3.2078,2716.0,2715.5,0.5766]
[1740375000710,0.5357,2716.1,2715.9,0.73637]
[1740375000915,0.5357,2716.1,2715.6,41.3294]
[1740375001111,0.72743262,2716.5,2715.6,44.5372]
[1740375001318,3.2078,2716.3,2716.1,0.73631]
[1740375001518,3.93523262,2716.6,2715.7,2.615]
[1740375001729,3.93523262,2716.6,2715.9,3.2078]
[1740375001920,3.93523262,2716.6,2716.3,0.73626]
[1740375002223,3.93523262,2716.6,2716.0,0.5641]
[1740375002524,3.2078,2716.3,2715.6,4.47365]
[1740375002824,0.5521,2716.2,2715.8,0.73639]
[1740375003122,0.5521,2716.2,2715.6,3.7372]
[1740375003420,3.2078,2716.0,2715.6,3.7372]
[1740375003922,3.2078,2716.0,2715.6,4.47366]
[1740375004229,3.2078,2716.0,2715.6,1.26586]
[1740375004420,5.8218,2716.0,2715.3,3.21331542]
[1740375004621,0.5731,2715.9,2715.3,3.21331542]
[1740375004827,1.30053262,2715.9,2715.3,3.21331542]
[1740375005027,1.30053262,2715.9,2715.7,0.73643]
[1740375005419,0.5433,2716.1,2715.4,1.84131]
[1740375005619,0.5433,2716.1,2715.7,0.73643]
[1740375005818,0.5433,2716.1,2715.8,0.5642]
[1740375006628,0.5433,2716.1,2715.3,3.21331542]
[1740375006928,3.7872,2716.0,2715.4,0.5374]
[1740375007229,4.51447361,2716.0,2715.4,1.27389]
[1740375007627,3.2078,2715.7,2715.4,0.5374]
[1740375007830,0.5737,2715.6,2715.3,0.00551542]
[1740375008127,0.5495,2715.5,2715.3,0.00551542]
[1740375008822,3.2078,2715.4,2715.3,0.00551542]
[1740375009018,3.7424,2715.4,2715.3,0.00551542]
[1740375009624,6.3564,2715.4,2715.3,0.00551542]
[1740375009824,6.3564,2715.4,2715.3,0.74206542]
[1740375010124,3.2078,2716.1,2716.0,0.73635]
[1740375010320,2.614,2716.3,2715.5,1.8412]
[1740375010527,2.614,2716.4,2715.6,3.2078]
[1740375010731,2.614,2716.4,2716.0,0.73634]
[1740375011126,3.34034404,2716.4,2715.6,3.94425]
[1740375011320,3.34034404,2716.4,2715.7,0.73643]
[1740375011521,3.34034404,2716.4,2715.6,3.94425]
[1740375011741,3.2078,2716.2,2715.4,1.1014]
[1740375012030,3.2078,2715.9,2715.4,1.83792]
[1740375012229,3.2078,2715.9,2715.4,1.1014]
[1740375012725,0.5746,2716.0,2715.9,0.73638]
[1740375013132,0.5746,2716.0,2715.8,0.7364]
[1740375014132,0.5746,2716.0,2715.6,0.73647]
[1740375014332,0.5746,2716.0,2715.5,3.2078]
[1740375014529,1.0941,2716.1,2715.9,0.73638]
[1740375014734,1.0941,2716.1,2715.8,0.7364]
[1740375015033,3.2078,2716.2,2715.8,0.7364]
[1740375015235,3.2078,2716.2,2715.5,3.2078]
[1740375015430,1.0676,2716.7,2715.9,3.2078]
[1740375015630,3.20780542,2716.8,2716.7,0.73617]
[1740375015824,3.93448502,2716.8,2716.7,0.73617]
[1740375016030,0.72668502,2716.8,2716.7,0.73617]
[1740375016332,5.42e-06,2716.8,2716.7,0.73175726]
[1740375016533,5.42e-06,2716.8,2716.7,1.87165726]
[1740375016737,12.32080542,2716.8,2714.4,1.59550819]
[1740375017035,3.2078,2715.5,2714.9,1.142]
[1740375017235,3.2078,2715.5,2715.4,0.73652]
[1740375017432,3.2078,2715.5,2715.2,0.73656]
[1740375017732,3.2078,2715.5,2714.9,3.756]
[1740375017938,3.2078,2715.5,2715.0,0.73661]
[1740375018139,3.2078,2715.5,2714.9,3.756]
[1740375018937,3.2078,2715.5,2714.9,1.142]
[1740375020040,3.2078,2715.5,2715.4,0.73652]
[1740375020232,3.2078,2715.5,2715.4,1.29102]
[1740375020632,3.2078,2715.5,2715.4,42.09102]
[1740375021337,3.2078,2716.1,2715.4,7.29102]
[1740375021637,0.1,3740.0,2716.0,3.2078]
[1740375021638,5.42e-06,2716.8,2716.0,3.2078]
[1740375021829,5.42e-06,2716.8,2716.7,0.73617]
[1740375022029,5.42e-06,2716.8,2716.7,3.94397]
[1740375022436,5.42e-06,2716.8,2716.7,6.55797]
[1740375027635,5.42e-06,2716.8,2716.7,3.2078]
[1740375028349,5.42e-06,2716.8,2716.2,2.613]
[1740375028849,5.42e-06,2716.8,2716.1,3.7623]
[1740375029144,3.2078,2716.6,2715.8,3.1651]
[1740375029351,3.2078,2716.6,2715.8,0.5521]
[1740375029646,3.2078,2716.3,2715.8,0.5521]
[1740375029842,0.5408,2716.2,2715.8,0.5521]
[1740375031539,0.5408,2716.2,2715.8,1.2885]
[1740375032241,0.5408,2716.2,2715.8,0.5521]
[1740375032442,0.5408,2716.2,2715.8,1.28851]
[1740375033049,0.5408,2716.2,2715.8,0.5521]
[1740375033352,0.5408,2716.2,2715.8,1.2885]
[1740375033748,0.5408,2716.2,2715.8,0.5521]
[1740375033947,0.5443,2716.5,2715.8,0.5521]
[1740375034145,5.42e-06,2716.8,2716.3,3.2078]
[1740375034347,5.42e-06,2716.8,2716.5,0.7362]
[1740375034642,5.42e-06,2716.8,2716.6,41.53619]
[1740375034842,5.42e-06,2716.8,2716.6,0.73619]
[1740375035343,5.42e-06,2716.8,2716.7,0.73617]
[1740375035543,5.42e-06,2716.8,2716.7,1.26937]
[1740375036944,5.42e-06,2716.8,2716.6,3.2078]
[1740375037144,5.42e-06,2716.8,2716.4,0.73622]
[1740375037339,5.42e-06,2716.8,2716.5,0.73621]
[1740375037649,5.42e-06,2716.8,2716.2,5.04019]
[1740375038039,0.57040542,2716.8,2716.2,4.3039]
[1740375038444,0.57040542,2716.8,2716.5,0.73621]
[1740375038752,0.57040542,2716.8,2716.4,0.73623]
[1740375039250,0.57040542,2716.8,2716.2,4.3039]
[1740375040145,5.42e-06,2716.8,2716.7,0.73617]
[1740375041251,5.42e-06,2716.8,2716.5,3.2078]
[1740375041444,5.42e-06,2716.8,2716.2,4.3039]
[1740375041644,5.42e-06,2716.8,2716.4,0.73623]
[1740375041847,5.42e-06,2716.8,2716.5,0.73622]
[1740375042047,2.61200542,2716.8,2716.2,3.2078]
[1740375042246,3.2078,2716.6,2715.6,6.9072]
[1740375042456,0.5578,2716.5,2716.4,0.73625]
[1740375042848,3.1623,2716.7,2716.6,0.73619]
[1740375043155,3.1623,2716.7,2716.1,0.73632]
[1740375043450,3.7596,2716.6,2716.0,0.73635]
[1740375043650,4.2886,2716.6,2716.1,0.73632]
[1740375043850,4.2886,2716.6,2716.0,0.73634]
[1740375044253,4.2886,2716.6,2716.1,0.73632]
[1740375044556,4.2886,2716.6,2715.9,3.2078]
[1740375045352,4.2886,2716.6,2716.1,0.7363]
[1740375045657,4.2886,2716.6,2716.2,0.7363]
[1740375045851,4.2886,2716.6,2715.9,3.2078]
[1740375046052,5.42e-06,2716.8,2716.6,0.73619]
[1740375046253,5.42e-06,2716.8,2716.2,5.04855]
[1740375046254,5.42e-06,2716.8,2716.7,0.73617]
[1740375046460,5.42e-06,2716.8,2716.7,41.53617]
[1740375046952,5.42e-06,2716.8,2716.7,0.73617]
[1740375055661,5.42e-06,2716.8,2716.5,3.2078]
[1740375055861,3.20780542,2716.8,2716.3,1.1017]
[1740375056074,1.132,2716.7,2716.3,1.83796]
[1740375056370,1.132,2716.7,2716.3,1.1017]
[1740375056969,1.132,2716.7,2716.4,0.73624]
[1740375057167,1.132,2716.7,2716.3,1.1017]
[1740375057368,1.132,2716.7,2716.3,1.83796]
[1740375057668,1.132,2716.7,2716.4,0.73623]
[1740375057865,1.132,2716.7,2716.3,1.1017]
[1740375058362,5.42e-06,2716.8,2716.4,3.2078]
[1740375058559,5.42e-06,2716.8,2716.7,3.94397]
[1740375058761,5.42e-06,2716.8,2716.7,0.73617]
[1740375061270,3.93421138,2717.6,2717.5,0.73595]
[1740375061466,3.2078,2717.6,2716.9,2.612]
[1740375061659,3.2078,2717.6,2717.2,0.73601]
[1740375061860,3.2078,2717.6,2717.3,0.73599]
[1740375062068,3.2078,2717.6,2717.5,0.73595]
[1740375062467,3.2078,2717.6,2717.4,0.73596]
[1740375062869,3.2078,2717.6,2717.3,0.00551542]
[1740375063171,3.2078,2717.6,2717.3,0.74150542]
[1740375063372,3.2078,2717.6,2717.3,0.00551542]
[1740375063565,3.2078,2717.6,2717.4,0.73597]
[1740375063766,3.2078,2717.6,2717.5,0.73595]
[1740375063967,0.00551542,2717.8,2717.7,0.7359]
[1740375064981,5.42e-06,2717.8,2717.7,0.7359]
[1740375065186,5.42e-06,2717.8,2717.7,3.9437]
[1740375065386,5.42e-06,2717.8,2717.7,6.5547]
[1740375065584,1.1231,2718.6,2718.5,0.73568]
[1740375065882,0.72548096,2718.7,2718.6,0.73565]
[1740375066076,0.5704,2719.0,2718.4,3.2078]
[1740375066279,0.5704,2719.0,2718.6,0.73564]
[1740375066488,0.5704,2719.0,2718.4,3.2078]
[1740375066688,0.5704,2719.0,2718.5,0.73567]
[1740375067190,1.1202,2719.0,2718.7,0.73562]
[1740375067587,1.1202,2719.0,2718.8,0.7356]
[1740375067785,1.1202,2719.0,2718.7,0.73561]
[1740375068089,1.1202,2719.0,2718.8,0.7356]
[1740375068275,1.1202,2719.0,2718.4,3.2078]
[1740375068580,1.1202,2719.0,2718.8,0.73559]
[1740375068977,1.1202,2719.0,2718.5,0.5535]
[1740375069189,1.1202,2719.0,2718.5,1.1093]
[1740375069577,1.1202,2719.0,2718.5,3.7203]
[1740375070489,1.1202,2719.0,2718.6,0.73564]
[1740375070785,1.1202,2719.0,2718.5,3.7203]
[1740375070990,1.1202,2719.0,2718.8,0.73558]
[1740375071491,1.1202,2719.0,2718.5,3.7203]
[1740375071990,4.328,2719.0,2718.4,6.55349]
[1740375072594,0.00551542,2719.1,2718.7,3.2078]
[1740375073188,0.00551542,2719.1,2719.0,0.73554]
[1740375074794,0.00551542,2719.1,2718.8,2.61551542]
[1740375074995,0.00551542,2719.1,2718.8,0.00551542]
[1740375075496,0.00551542,2719.1,2719.0,0.73554]
[1740375075689,0.00551542,2719.1,2718.8,0.00551542]
[1740375075897,0.00551542,2719.1,2718.9,0.73557]
[1740375076387,0.00551542,2719.1,2718.8,0.00551542]
[1740375076589,0.00551542,2719.1,2718.8,0.74110542]
[1740375076792,0.00551542,2719.1,2718.8,0.00551542]
[1740375076990,3.2078,2719.0,2718.8,0.00551542]
[1740375077194,0.5508,2718.9,2718.8,0.00551542]
[1740375079199,0.5508,2718.9,2718.8,0.74111542]
[1740375080395,0.00551542,2719.1,2718.9,0.73555]
[1740375080595,0.00551542,2719.1,2718.8,0.74109542]
[1740375080893,0.00551542,2719.1,2719.0,0.73554]
[1740375085598,0.00551542,2719.1,2718.9,1.1277]
[1740375085894,0.00551542,2719.1,2718.8,0.00551542]
[1740375086301,3.2078,2718.9,2718.8,0.00551542]
[1740375086895,2.61451542,2719.1,2718.8,0.74111542]
[1740375087091,2.61451542,2719.1,2718.9,0.73556]
[1740375087297,2.61451542,2719.1,2718.8,0.74109542]
[1740375087503,2.61451542,2719.1,2718.8,0.00551542]
[1740375087701,0.00551542,2719.1,2719.0,0.73554]
[1740375088502,0.00551542,2719.1,2719.0,1.29144]
[1740375089298,5.42e-06,2719.1,2719.0,42.09144]
[1740375089605,1.1467,2720.2,2719.6,0.73536]
[1740375089804,1.1467,2720.2,2719.3,3.2078]
[1740375090000,1.87070953,2720.2,2719.6,3.2078]
[1740375090503,1.1467,2720.2,2719.7,0.5559]
[1740375090708,3.2078,2720.0,2719.4,0.5678]
[1740375091004,3.2078,2720.0,2719.4,1.30322]
[1740375091206,3.2078,2720.0,2719.4,0.5678]
[1740375091604,3.2078,2720.0,2719.4,1.30322]
[1740375092108,3.2078,2720.0,2719.4,0.5678]
[1740375092402,3.2078,2720.0,2719.4,1.30322]
[1740375093108,3.2078,2720.0,2719.4,0.5678]
[1740375093307,3.21172552,2720.0,2719.4,0.5678]
[1740375093505,3.2078,2719.7,2719.4,0.5678]
[1740375093808,3.2078,2719.7,2719.4,1.30322]
[1740375094006,3.1539,2719.9,2719.4,0.5678]
[1740375094206,0.5459,2719.9,2719.4,1.30323]
[1740375094706,0.5459,2719.9,2719.4,0.5678]
[1740375095508,0.5459,2719.9,2719.4,1.30322]
[1740375095708,0.5459,2719.9,2719.4,0.5678]
[1740375095910,0.5459,2719.9,2719.4,1.30322]
[1740375096109,0.5459,2719.9,2719.4,0.5678]
[1740375096405,3.2078,2719.8,2719.0,3.2078]
[1740375096606,3.2078,2719.2,2718.8,0.00551542]
[1740375096807,1.138,2719.1,2718.8,0.00551542]
[1740375097012,1.7216,2719.1,2718.8,0.00551542]
[1740375099309,3.2078,2718.9,2718.8,0.00551542]
[1740375108519,3.2078,2718.9,2718.2,1.113]
[1740375108713,3.2078,2718.5,2718.2,1.113]
[1740375109524,3.2078,2718.5,2717.8,3.2078]
[1740375109722,3.2078,2718.2,2718.1,0.00551542]
[1740375109913,3.2078,2718.2,2717.3,44.74379]
[1740375110115,0.5832,2718.1,2717.3,44.74379]
[1740375110315,3.2078,2717.9,2717.3,3.2078]
[1740375110516,0.5393,2717.8,2717.3,3.9438]
[1740375111020,0.5393,2717.8,2717.3,3.94931542]
[1740375111420,3.2078,2717.9,2717.6,0.73591]
[1740375111622,3.2078,2717.9,2717.3,3.21331542]
[1740375111623,3.2078,2717.9,2717.5,0.73594]
[1740375111917,3.2078,2717.8,2717.3,0.00551542]
[1740375112126,3.2078,2717.5,2717.3,0.00551542]
[1740375112321,0.5555,2717.4,2717.3,0.00551542]
[1740375112823,1.1119,2717.4,2717.3,0.00551542]
[1740375113028,1.6394,2717.4,2717.3,0.00551542]
[1740375113520,1.6394,2717.4,2716.4,1.84555]
[1740375113721,3.2078,2717.3,2716.4,1.84555]
[1740375113920,3.2078,2717.3,2716.4,1.1093]
[1740375114124,3.2078,2717.3,2716.5,0.7362]
[1740375114716,0.00551542,2717.2,2716.6,0.74170542]
[1740375115329,0.00551542,2717.2,2716.6,0.00551542]
[1740375115526,0.00551542,2717.2,2716.7,0.73615]
[1740375116024,0.00551542,2717.2,2716.6,0.00551542]
[1740375116226,0.00551542,2717.2,2716.7,0.73617]
[1740375116725,0.00551542,2717.2,2716.7,0.73616]
[1740375117418,0.00551542,2717.2,2717.0,0.73606]
[1740375117722,0.00551542,2717.2,2717.1,3.94386]
[1740375117924,1.6703,2718.0,2717.9,0.73584]
[1740375118228,0.5414,2718.0,2717.9,0.73584]
[1740375118521,3.2078,2718.1,2718.0,0.73582]
[1740375118825,2.608,2718.7,2718.0,0.29735242]
[1740375119023,0.5414,2718.8,2718.1,3.2078]
[1740375119325,3.2078,2718.3,2718.1,0.00551542]
[1740375119522,4.2784,2718.2,2717.1,0.5699]
[1740375119715,3.2078,2717.8,2717.1,1.30596]
[1740375120023,3.2078,2718.1,2717.3,3.2078]
[1740375120225,2.608,2718.0,2717.8,0.73586]
[1740375120547,2.608,2718.0,2717.6,3.2078]
[1740375120729,2.608,2718.0,2717.6,0.00551542]
[1740375120921,2.608,2718.0,2717.6,0.74143542]
[1740375121522,3.2078,2718.2,2717.9,0.73583]
[1740375121726,3.2078,2718.2,2717.7,3.2078]
[1740375121727,3.2078,2718.2,2717.7,0.5321]
[1740375122031,0.5813,2718.5,2718.3,0.73572]
[1740375122325,0.00551542,2718.6,2718.2,3.2078]
[1740375122528,0.00551542,2718.6,2718.3,0.5321]
[1740375122826,0.00551542,2718.6,2718.5,0.73568]
[1740375124127,3.2078,2719.6,2718.5,6.11055386]
[1740375124329,3.2078,2719.7,2719.2,0.73548]
[1740375124527,3.2078,2719.7,2718.8,3.2078]
[1740375124726,3.2078,2719.7,2719.1,0.7355]
[1740375124921,3.2078,2719.7,2719.0,0.73553]
[1740375125320,0.00551542,2719.6,2719.2,0.73547]
[1740375125927,0.00551542,2719.6,2719.3,0.73546]
[1740375126530,0.00551542,2719.6,2719.1,0.00551542]
[1740375126730,0.00551542,2719.6,2719.4,0.73542]
[1740375126927,0.00551542,2719.6,2719.2,0.73548]
[1740375127320,0.00551542,2719.6,2719.1,0.00551542]
[1740375127827,0.00551542,2719.6,2719.5,0.73541]
[1740375128629,0.00551542,2719.6,2719.2,1.1135]
[1740375129025,0.00551542,2719.6,2719.2,0.5333]
[1740375129628,0.00551542,2719.6,2719.2,1.26877]
[1740375129833,0.00551542,2719.6,2719.2,0.5333]
[1740375130231,0.00551542,2719.6,2719.2,1.26878]
[1740375130432,0.00551542,2719.6,2719.2,0.5333]
[1740375131332,0.00551542,2719.6,2719.3,0.73545]
[1740375131536,0.00551542,2719.6,2719.3,0.73546]
[1740375131738,0.00551542,2719.6,2719.2,1.26878]
[1740375131935,0.00551542,2719.6,2719.2,0.5333]
[1740375132138,0.00551542,2719.6,2719.5,0.73541]
[1740375133339,1.73432552,2720.0,2719.5,2.607]
[1740375133340,0.00392552,2720.0,2719.5,2.607]
[1740375133544,0.00392552,2720.0,2719.8,0.73532]
[1740375133745,0.00392552,2720.0,2719.5,2.607]
[1740375134041,0.00392552,2720.0,2719.9,0.7353]
[1740375134239,0.00392552,2720.0,2719.5,2.607]
[1740375134438,0.00944094,2720.0,2719.8,0.73532]
[1740375134639,0.00944094,2720.0,2719.9,0.7353]
[1740375134839,0.00944094,2720.0,2719.7,0.73534]
[1740375135135,0.00944094,2720.0,2719.8,0.73532]
[1740375135442,0.00944094,2720.0,2719.5,2.607]
[1740375135443,0.00944094,2720.0,2719.9,0.7353]
[1740375136337,0.00392552,2720.0,2719.9,0.7353]
[1740375136738,0.00392552,2720.0,2719.9,3.3413]
[1740375137135,3.2078,2720.9,2719.9,2.606]
[1740375137341,5.8138,2721.2,2720.1,3.2078]
[1740375137541,0.06122414,2721.1,2720.5,0.73513]
[1740375137843,3.2078,2720.9,2720.3,3.34119]
[1740375138238,3.2078,2720.9,2720.2,2.606]
[1740375138434,1.1103,2720.8,2720.3,0.00551542]
[1740375138935,3.2078,2720.6,2720.3,0.00551542]
[1740375140842,2.66724018,2720.5,2720.3,0.00551542]
[1740375141046,2.606,2720.5,2720.3,0.00551542]
[1740375141238,0.5421,2720.4,2720.3,0.00551542]
[1740375142242,0.5421,2720.4,2719.7,3.2078]
[1740375142443,3.2078,2720.3,2719.7,3.2078]
[1740375142646,3.2078,2720.3,2719.7,3.94315]
[1740375142847,3.2078,2720.3,2719.7,3.2078]
[1740375143044,3.2078,2720.3,2719.7,3.94314]
[1740375143451,3.2078,2720.3,2719.7,3.21331542]
[1740375146456,3.2078,2720.0,2719.7,0.00551542]
[1740375146748,3.7135,2719.9,2719.7,0.00551542]
[1740375147247,0.536,2719.8,2719.7,0.00551542]
[1740375149853,3.2078,2720.3,2719.8,0.73531]
[1740375150250,3.2078,2720.3,2719.7,0.00551542]
[1740375150446,3.2078,2720.3,2720.1,0.73525]
[1740375150849,3.2078,2720.3,2720.1,0.73522]
[1740375151049,3.2078,2720.3,2720.2,0.73522]
[1740375151455,3.2078,2720.7,2720.2,0.73522]
[1740375151649,2.605,2720.6,2720.0,0.73527]
[1740375151851,2.605,2720.6,2719.9,1.1128]
[1740375152046,3.32936897,2720.6,2719.9,1.1128]
[1740375152452,3.32936897,2720.6,2719.9,1.84809]
[1740375152755,3.32936897,2720.6,2719.9,1.84808]
[1740375152951,3.2078,2720.3,2719.7,0.00551542]
[1740375153252,0.5594,2720.2,2719.7,0.00551542]
[1740375153651,0.5594,2720.2,2720.0,0.73526]
[1740375153851,0.5594,2720.2,2719.7,0.00551542]
[1740375154053,0.5594,2720.2,2720.1,0.73525]
[1740375154857,0.5594,2720.2,2720.0,0.73526]
[1740375155057,0.5594,2720.2,2719.7,0.00551542]
[1740375155357,0.5594,2720.2,2720.1,0.73525]
[1740375155563,0.72436897,2720.5,2720.4,0.73517]
[1740375156262,0.72436897,2720.5,2720.1,3.2078]
[1740375156558,1.26136897,2720.7,2720.3,0.73518]
[1740375157359,3.2078,2720.4,2719.9,0.7353]
[1740375157555,3.2078,2720.4,2720.0,0.73525]
[1740375158260,3.2078,2720.4,2720.0,0.73526]
[1740375158461,3.2078,2720.4,2719.8,3.2078]
[1740375158760,3.2078,2720.4,2719.9,0.73529]
[1740375159151,3.2078,2720.4,2720.0,0.73527]
[1740375159352,3.2078,2720.4,2719.8,3.2078]
[1740375159748,3.7448,2720.7,2719.8,3.2078]
[1740375160158,3.7448,2720.7,2720.4,0.73515]
[1740375160556,3.7448,2720.7,2720.3,0.73519]
[1740375161263,3.7448,2720.7,2720.3,1.27299]
[1740375161459,3.7448,2720.7,2720.3,0.5378]
[1740375161660,3.7448,2720.7,2720.3,1.27298]
[1740375162256,3.7448,2720.7,2720.2,0.5608]
[1740375162257,3.2078,2720.4,2720.2,0.5608]
[1740375162456,3.2078,2720.4,2720.0,0.73527]
[1740375162754,3.2078,2720.4,2719.9,0.5505]
[1740375163257,3.7448,2720.7,2720.4,0.73515]
[1740375163451,3.7448,2720.7,2719.9,0.5505]
[1740375163655,3.2078,2720.7,2720.4,0.73515]
[1740375163856,3.2078,2720.7,2720.5,0.73514]
[1740375164258,3.2078,2720.7,2720.1,3.2078]
[1740375164458,3.2078,2720.7,2720.4,0.73515]
[1740375165160,3.2078,2720.7,2720.4,0.73514]
[1740375165557,3.2078,2720.7,2720.5,0.73514]
[1740375165753,3.2078,2720.7,2720.1,3.2078]
[1740375165956,3.2078,2720.7,2720.4,0.73515]
[1740375166456,3.2078,2720.7,2720.5,0.73514]
[1740375167262,3.2078,2720.7,2720.1,3.2078]
[1740375167964,3.2078,2720.7,2720.4,0.73516]
[1740375168563,3.2078,2720.7,2720.4,0.73515]
[1740375168762,3.2078,2720.7,2720.5,0.73514]
[1740375169364,3.2078,2720.7,2720.1,5.8118]
[1740375169957,3.2078,2720.7,2720.5,0.73513]
[1740375170366,3.2078,2720.7,2720.6,0.73511]
[1740375170566,3.2078,2720.7,2720.1,5.8118]
[1740375170968,3.2078,2720.7,2720.6,0.73511]
[1740375171769,0.5322,2720.8,2720.6,0.7351]
[1740375171967,0.5322,2720.8,2720.5,0.73512]
[1740375172157,0.5322,2720.8,2720.1,5.8118]
[1740375172363,0.5322,2720.8,2720.6,0.73511]
[1740375172563,0.5322,2720.8,2720.5,0.73512]
[1740375173669,0.5322,2720.8,2720.1,5.8118]
[1740375173864,3.2078,2721.0,2720.4,0.73515]
[1740375174375,3.2078,2721.0,2720.1,5.8118]
[1740375174672,3.2078,2720.7,2720.1,3.2078]
[1740375174869,1.6007,2720.6,2720.2,0.73522]
[1740375176474,2.33228227,2720.6,2720.2,0.73522]
[1740375177178,2.33228227,2720.6,2719.9,0.5505]
[1740375177469,2.33228227,2720.6,2720.3,0.73518]
[1740375178380,0.73158227,2720.6,2720.5,0.73514]
[1740375178972,3.2078,2720.7,2720.5,0.73514]
[1740375179275,3.2078,2720.7,2720.6,0.55180644]
[1740375180479,3.2078,2720.7,2720.6,0.55184885]
[1740375180672,4.3145,2720.7,2720.6,0.55184885]
[1740375180875,5.04608227,2720.7,2720.6,0.55184885]
[1740375181581,4.3145,2720.7,2720.6,0.55184885]
[1740375182281,3.2078,2720.7,2720.6,0.55184885]
[1740375183981,5.8108,2720.7,2720.6,0.54291012]
[1740375184674,11.8108,2720.7,2719.9,0.5505]
[1740375184874,3.2078,2720.3,2719.9,0.5505]
[1740375185075,1.0677,2720.2,2719.9,0.5505]
[1740375186279,1.0677,2720.2,2719.9,1.28579]
[1740375186480,1.0677,2720.2,2719.9,0.5505]
[1740375186882,1.0677,2720.2,2719.7,0.00551542]
[1740375187679,3.6707,2720.2,2719.7,0.74087542]
[1740375188275,4.2432,2720.2,2719.7,0.74087542]
[1740375188777,5.02074981,2721.4,2720.2,0.7352]
[1740375188778,5.8108,2720.5,2720.2,0.7352]
[1740375188977,4.8453,2720.8,2720.3,0.73518]
[1740375189175,0.06123565,2720.7,2720.3,0.73518]
[1740375189475,7.4483,2720.8,2720.4,0.88584679]
[1740375189678,7.4483,2720.8,2720.5,0.88584679]
[1740375189879,7.4483,2720.8,2719.9,40.8]
[1740375190177,7.4483,2720.8,2720.2,0.73521]
[1740375190370,7.4483,2720.8,2720.3,0.88583308]
[1740375190573,3.2078,2720.6,2720.4,0.88583308]
[1740375190882,0.06124177,2720.5,2719.8,0.5651]
[1740375191083,3.2078,2720.1,2719.9,0.88616003]
[1740375191278,1.1265,2720.0,2719.7,0.00551542]
[1740375191578,3.2078,2719.9,2719.8,0.88603451]
[1740375191978,3.7295,2720.0,2719.8,0.88597564]
[1740375192181,3.2078,2720.3,2719.9,0.88597564]
[1740375192384,0.5795,2720.2,2719.7,0.00551542]
[1740375192676,3.2078,2720.7,2720.1,3.2078]
[1740375192879,3.2078,2720.7,2720.2,3.7236]
[1740375193279,3.2078,2720.7,2720.5,0.73513]
[1740375193482,3.2078,2720.7,2720.4,0.73515]
[1740375194181,3.2078,2720.7,2720.2,3.7236]
[1740375194374,3.2078,2720.7,2720.3,0.73519]
[1740375194577,3.2078,2720.7,2720.2,1.1206]
[1740375194779,0.5428,2720.6,2720.2,1.1206]
[1740375194983,1.0994,2720.6,2720.2,1.1206]
[1740375195984,1.6789,2720.6,2720.2,1.1206]
[1740375196685,1.6789,2720.6,2720.3,0.53767055]
[1740375196876,1.6789,2720.6,2720.4,0.53767055]
[1740375197176,1.6789,2720.6,2720.5,0.53767055]
[1740375198679,1.0994,2720.6,2720.5,1.27281055]
[1740375198878,1.0994,2720.6,2720.5,0.53767055]
[1740375199680,3.2078,2720.7,2720.5,0.53767055]
[1740375199879,3.2078,2720.7,2720.6,0.53767055]
[1740375200682,3.26903478,2720.7,2720.6,0.53767055]
[1740375201085,3.26903478,2720.7,2720.2,1.1206]
[1740375201284,1.6876,2720.6,2720.3,0.54709991]
[1740375201480,1.6876,2720.6,2720.4,0.54709991]
[1740375201681,1.6876,2720.6,2720.5,0.54709991]
[1740375202487,1.6876,2720.6,2720.2,1.1206]
[1740375202686,1.6876,2720.6,2720.3,0.54709501]
[1740375202987,1.6876,2720.6,2720.4,0.54709501]